[Event "Titled Tuesday Blitz March 21 Early 2023"]
[White "Buscar, Michael"]
[Black "Quinones Garcia, Santiago"]
[WhiteFideId "2603616"]
[BlackFideId "4408497"]
[WhiteElo "2010"]
[BlackElo "2263"]
[Result "0-1"]
[Round "05"]
[TimeControl "180+2"]
[Date "2023.03.21"]
[WhiteClock "0:00:37"]
[BlackClock "0:01:17"]

1. d4 {[%clk 0:03:00]}  Nf6 {[%clk 0:02:51]} 2. c4 {[%clk 0:02:59]}  g6 {[%clk 0:02:51]} 3. Nc3 {[%clk 0:02:59]}  d5 {[%clk 0:02:51]} 4. cxd5 {[%clk 0:02:59]}  Nxd5 {[%clk 0:02:52]} 5. e4 {[%clk 0:02:59]}  Nxc3 {[%clk 0:02:53]} 6. bxc3 {[%clk 0:03:00]}  Bg7 {[%clk 0:02:53]} 7. Bc4 {[%clk 0:02:58]}  c5 {[%clk 0:02:54]} 8. Ne2 {[%clk 0:02:56]}  Nc6 {[%clk 0:02:52]} 9. Be3 {[%clk 0:02:56]}  O-O {[%clk 0:02:53]} 10. O-O {[%clk 0:02:55]}  Qc7 {[%clk 0:02:52]} 11. Rc1 {[%clk 0:02:42]}  Rd8 {[%clk 0:02:52]} 12. Qc2 {[%clk 0:02:32]}  b6 {[%clk 0:02:50]} 13. Rfd1 {[%clk 0:02:31]}  Na5 {[%clk 0:02:45]} 14. Bd5 {[%clk 0:02:17]}  Bb7 {[%clk 0:02:44]} 15. Bxb7 {[%clk 0:02:09]}  Nxb7 {[%clk 0:02:43]} 16. Bf4 {[%clk 0:01:59]}  Qc6 {[%clk 0:02:41]} 17. d5 {[%clk 0:01:54]}  Qd7 {[%clk 0:02:37]} 18. c4 {[%clk 0:01:52]}  e5 {[%clk 0:02:35]} 19. Be3 {[%clk 0:01:45]}  Nd6 {[%clk 0:02:30]} 20. f3 {[%clk 0:01:46]}  f5 {[%clk 0:02:30]} 21. Bg5 {[%clk 0:01:42]}  Rf8 {[%clk 0:02:29]} 22. Qd3 {[%clk 0:01:38]}  fxe4 {[%clk 0:02:29]} 23. fxe4 {[%clk 0:01:38]}  Qg4 {[%clk 0:02:29]} 24. Be7 {[%clk 0:01:34]}  Nxe4 {[%clk 0:02:11]} 25. Bxf8 {[%clk 0:01:31]}  Rxf8 {[%clk 0:02:12]} 26. Ng3 {[%clk 0:01:26]}  Nf2 {[%clk 0:02:08]} 27. Qe2 {[%clk 0:01:16]}  Qxe2 {[%clk 0:02:02]} 28. Nxe2 {[%clk 0:01:17]}  Nxd1 {[%clk 0:02:02]} 29. Rxd1 {[%clk 0:01:17]}  Bh6 {[%clk 0:01:57]} 30. Rd3 {[%clk 0:01:06]}  e4 {[%clk 0:01:50]} 31. Rh3 {[%clk 0:01:06]}  Bg7 {[%clk 0:01:49]} 32. Re3 {[%clk 0:01:02]}  Re8 {[%clk 0:01:44]} 33. Ra3 {[%clk 0:00:56]}  Re7 {[%clk 0:01:40]} 34. g3 {[%clk 0:00:56]}  Bd4+ {[%clk 0:01:39]} 35. Kg2 {[%clk 0:00:56]}  Kf8 {[%clk 0:01:37]} 36. Nf4 {[%clk 0:00:56]}  Ke8 {[%clk 0:01:35]} 37. Ne6 {[%clk 0:00:53]}  Rf7 {[%clk 0:01:31]} 38. h4 {[%clk 0:00:49]}  e3 {[%clk 0:01:17]} 39. Nf4 {[%clk 0:00:37]}  Rxf4 {[%clk 0:01:17]} 40. gxf4 {[%clk 0:00:37]}  e2 {[%clk 0:01:17]} 0-1


[Site "https://www.chess.com"]

[Event "Titled Tuesday Blitz March 21 Early 2023"]
[White "koncheto"]
[Black "Ovezdurdyyeva, Jemal"]
[BlackFideId "14001888"]
[WhiteElo "2505"]
[BlackElo "2043"]
[Result "1-0"]
[Round "05"]
[TimeControl "180+2"]
[Date "2023.03.21"]
[WhiteClock "0:01:09"]
[BlackClock "0:00:45"]

1. e4 {[%clk 0:02:49]}  d6 {[%clk 0:02:59]} 2. d4 {[%clk 0:02:49]}  Nf6 {[%clk 0:02:59]} 3. Bd3 {[%clk 0:02:49]}  g6 {[%clk 0:02:59]} 4. f4 {[%clk 0:02:40]}  Bg7 {[%clk 0:02:57]} 5. Nf3 {[%clk 0:02:39]}  c6 {[%clk 0:02:57]} 6. O-O {[%clk 0:02:35]}  b5 {[%clk 0:02:57]} 7. c3 {[%clk 0:02:35]}  O-O {[%clk 0:02:57]} 8. Be3 {[%clk 0:02:36]}  Nbd7 {[%clk 0:02:56]} 9. e5 {[%clk 0:02:35]}  dxe5 {[%clk 0:02:55]} 10. fxe5 {[%clk 0:02:35]}  Nd5 {[%clk 0:02:55]} 11. Qe2 {[%clk 0:02:34]}  f6 {[%clk 0:02:46]} 12. h4 {[%clk 0:02:17]}  fxe5 {[%clk 0:02:40]} 13. h5 {[%clk 0:02:15]}  Nxe3 {[%clk 0:02:34]} 14. Qxe3 {[%clk 0:02:12]}  exd4 {[%clk 0:02:34]} 15. cxd4 {[%clk 0:02:11]}  Rf6 {[%clk 0:02:21]} 16. hxg6 {[%clk 0:02:07]}  hxg6 {[%clk 0:02:20]} 17. Nc3 {[%clk 0:02:07]}  Nf8 {[%clk 0:02:18]} 18. Ne4 {[%clk 0:01:55]}  Re6 {[%clk 0:02:08]} 19. Kh1 {[%clk 0:01:52]}  Qd5 {[%clk 0:01:58]} 20. Nfg5 {[%clk 0:01:51]}  Bxd4 {[%clk 0:01:46]} 21. Qh3 {[%clk 0:01:48]}  Re5 {[%clk 0:01:43]} 22. Rxf8+ {[%clk 0:01:13]}  Kxf8 {[%clk 0:01:43]} 23. Qh8+ {[%clk 0:01:10]}  Qg8 {[%clk 0:01:42]} 24. Rf1+ {[%clk 0:01:10]}  Rf5 {[%clk 0:01:03]} 25. Nh7+ {[%clk 0:01:09]}  Kf7 {[%clk 0:00:45]} 26. Neg5+ {[%clk 0:01:09]} 1-0


[Site "https://www.chess.com"]

[Event "Titled Tuesday Blitz March 21 Early 2023"]
[White "Sanchez Alvares, Kelvin Antonio"]
[Black "Manon-og, Ramon Jr."]
[WhiteFideId "3906680"]
[BlackFideId "5200776"]
[WhiteElo "2217"]
[BlackElo "2334"]
[Result "1-0"]
[Round "05"]
[TimeControl "180+2"]
[Date "2023.03.21"]
[WhiteClock "0:00:44"]
[BlackClock "0:00:01"]

1. e4 {[%clk 0:03:00]}  c5 {[%clk 0:02:58]} 2. Nf3 {[%clk 0:02:48]}  d6 {[%clk 0:02:58]} 3. d4 {[%clk 0:02:44]}  cxd4 {[%clk 0:02:58]} 4. Nxd4 {[%clk 0:02:44]}  Nf6 {[%clk 0:02:58]} 5. Nc3 {[%clk 0:02:43]}  a6 {[%clk 0:02:58]} 6. Bg5 {[%clk 0:02:44]}  e6 {[%clk 0:02:58]} 7. f4 {[%clk 0:02:44]}  Nbd7 {[%clk 0:02:58]} 8. Qf3 {[%clk 0:02:44]}  Be7 {[%clk 0:02:57]} 9. O-O-O {[%clk 0:02:44]}  Qc7 {[%clk 0:02:57]} 10. g4 {[%clk 0:02:44]}  b5 {[%clk 0:02:57]} 11. h4 {[%clk 0:02:43]}  Bb7 {[%clk 0:02:56]} 12. Bxf6 {[%clk 0:02:43]}  Nxf6 {[%clk 0:02:55]} 13. g5 {[%clk 0:02:44]}  Nd7 {[%clk 0:02:52]} 14. Bd3 {[%clk 0:02:43]}  Nc5 {[%clk 0:02:50]} 15. Kb1 {[%clk 0:02:39]}  b4 {[%clk 0:02:50]} 16. Nce2 {[%clk 0:02:39]}  Rc8 {[%clk 0:02:44]} 17. Ng3 {[%clk 0:02:37]}  Qb6 {[%clk 0:02:36]} 18. f5 {[%clk 0:02:24]}  e5 {[%clk 0:02:27]} 19. Nb3 {[%clk 0:02:23]}  a5 {[%clk 0:02:01]} 20. f6 {[%clk 0:02:21]}  gxf6 {[%clk 0:02:00]} 21. gxf6 {[%clk 0:02:20]}  Bf8 {[%clk 0:02:00]} 22. Nf5 {[%clk 0:02:18]}  Rg8 {[%clk 0:01:57]} 23. Nd2 {[%clk 0:02:12]}  Nxd3 {[%clk 0:01:48]} 24. cxd3 {[%clk 0:02:05]}  Rg6 {[%clk 0:01:46]} 25. Ne3 {[%clk 0:02:00]}  Qd4 {[%clk 0:01:33]} 26. Ndc4 {[%clk 0:01:55]}  a4 {[%clk 0:01:26]} 27. Nf5 {[%clk 0:01:51]}  Qc5 {[%clk 0:01:19]} 28. Ng7+ {[%clk 0:01:51]}  Bxg7 {[%clk 0:01:13]} 29. fxg7 {[%clk 0:01:50]}  Rxg7 {[%clk 0:01:13]} 30. Qf6 {[%clk 0:01:45]}  Rg6 {[%clk 0:01:11]} 31. Qf5 {[%clk 0:01:32]}  a3 {[%clk 0:01:02]} 32. Rhf1 {[%clk 0:01:31]}  Rc7 {[%clk 0:00:59]} 33. h5 {[%clk 0:01:31]}  Rg2 {[%clk 0:00:50]} 34. Qf6 {[%clk 0:01:23]}  Qd4 {[%clk 0:00:42]} 35. Nxd6+ {[%clk 0:01:06]}  Kd7 {[%clk 0:00:42]} 36. Qxf7+ {[%clk 0:01:03]}  Kc6 {[%clk 0:00:20]} 37. Qxc7+ {[%clk 0:01:00]}  Kxc7 {[%clk 0:00:16]} 38. Nb5+ {[%clk 0:01:00]}  Kb6 {[%clk 0:00:15]} 39. Nxd4 {[%clk 0:01:00]}  Rxb2+ {[%clk 0:00:16]} 40. Ka1 {[%clk 0:01:00]}  exd4 {[%clk 0:00:16]} 41. Rb1 {[%clk 0:00:56]}  Rd2 {[%clk 0:00:13]} 42. Rxb4+ {[%clk 0:00:56]}  Ka5 {[%clk 0:00:12]} 43. Rb3 {[%clk 0:00:48]}  Ba6 {[%clk 0:00:07]} 44. Rxa3+ {[%clk 0:00:47]}  Kb5 {[%clk 0:00:01]} 45. Rf5+ {[%clk 0:00:46]}  Kb4 {[%clk 0:00:01]} 46. Rxa6 {[%clk 0:00:44]} 1-0


[Site "https://www.chess.com"]

[Event "Titled Tuesday Blitz March 21 Early 2023"]
[White "Wahedi, Ahmad Siar"]
[Black "Martinez, Shawn"]
[WhiteFideId "4651260"]
[BlackFideId "2039770"]
[WhiteElo "2457"]
[BlackElo "2174"]
[Result "1-0"]
[Round "05"]
[TimeControl "180+2"]
[Date "2023.03.21"]
[WhiteClock "0:00:47"]
[BlackClock "0:00:02"]

1. e4 {[%clk 0:03:00]}  c5 {[%clk 0:02:59]} 2. Nf3 {[%clk 0:03:00]}  e6 {[%clk 0:02:59]} 3. c3 {[%clk 0:03:00]}  Nf6 {[%clk 0:02:50]} 4. d3 {[%clk 0:02:58]}  Nc6 {[%clk 0:02:47]} 5. Be2 {[%clk 0:02:57]}  Qc7 {[%clk 0:02:44]} 6. Nbd2 {[%clk 0:02:48]}  b6 {[%clk 0:02:41]} 7. O-O {[%clk 0:02:46]}  Be7 {[%clk 0:02:39]} 8. Re1 {[%clk 0:02:45]}  O-O {[%clk 0:02:38]} 9. Nf1 {[%clk 0:02:45]}  d5 {[%clk 0:02:34]} 10. Ng3 {[%clk 0:02:44]}  Bb7 {[%clk 0:02:28]} 11. exd5 {[%clk 0:02:44]}  Nxd5 {[%clk 0:02:25]} 12. d4 {[%clk 0:02:43]}  Rad8 {[%clk 0:02:23]} 13. Bd3 {[%clk 0:02:39]}  cxd4 {[%clk 0:02:20]} 14. cxd4 {[%clk 0:02:39]}  Nf4 {[%clk 0:02:18]} 15. Bb1 {[%clk 0:02:37]}  Nb4 {[%clk 0:02:13]} 16. Qd2 {[%clk 0:02:28]}  Nh3+ {[%clk 0:02:01]} 17. Kf1 {[%clk 0:02:13]}  Ba6+ {[%clk 0:01:54]} 18. Ne2 {[%clk 0:02:12]}  Qb7 {[%clk 0:01:27]} 19. a3 {[%clk 0:02:02]}  Nd5 {[%clk 0:01:05]} 20. gxh3 {[%clk 0:01:58]}  Bd6 {[%clk 0:00:58]} 21. Qg5 {[%clk 0:01:53]}  Nf4 {[%clk 0:00:51]} 22. Bxf4 {[%clk 0:01:46]}  Qxf3 {[%clk 0:00:50]} 23. Bxd6 {[%clk 0:01:39]}  Rxd6 {[%clk 0:00:50]} 24. Qg4 {[%clk 0:01:33]}  Qh1+ {[%clk 0:00:43]} 25. Qg1 {[%clk 0:01:33]}  Qf3 {[%clk 0:00:44]} 26. Qg2 {[%clk 0:01:34]}  Qb3 {[%clk 0:00:39]} 27. Qg3 {[%clk 0:01:27]}  Qd5 {[%clk 0:00:29]} 28. Bd3 {[%clk 0:01:25]}  Bb7 {[%clk 0:00:25]} 29. Nf4 {[%clk 0:01:25]}  Qxd4 {[%clk 0:00:23]} 30. Rad1 {[%clk 0:01:19]}  Kh8 {[%clk 0:00:16]} 31. Be4 {[%clk 0:01:10]}  Qc4+ {[%clk 0:00:15]} 32. Bd3 {[%clk 0:01:09]}  Qc6 {[%clk 0:00:13]} 33. f3 {[%clk 0:00:57]}  Rfd8 {[%clk 0:00:11]} 34. Be2 {[%clk 0:00:57]}  Qc2 {[%clk 0:00:09]} 35. Rxd6 {[%clk 0:00:56]}  Rxd6 {[%clk 0:00:10]} 36. Nh5 {[%clk 0:00:55]}  Qg6 {[%clk 0:00:05]} 37. Qxd6 {[%clk 0:00:54]}  h6 {[%clk 0:00:04]} 38. Qb8+ {[%clk 0:00:53]}  Kh7 {[%clk 0:00:04]} 39. Qxb7 {[%clk 0:00:53]}  Qxh5 {[%clk 0:00:05]} 40. Qe4+ {[%clk 0:00:53]}  f5 {[%clk 0:00:05]} 41. Qxe6 {[%clk 0:00:50]}  Qxh3+ {[%clk 0:00:05]} 42. Kg1 {[%clk 0:00:50]}  Qh4 {[%clk 0:00:05]} 43. Rf1 {[%clk 0:00:50]}  Qg5+ {[%clk 0:00:03]} 44. Kh1 {[%clk 0:00:48]}  Qd2 {[%clk 0:00:02]} 45. Rg1 {[%clk 0:00:47]} 1-0


[Site "https://www.chess.com"]

[Event "Titled Tuesday Blitz March 21 Early 2023"]
[White "Baches Garcia, Guillermo"]
[Black "Sovetbekova, Nurai"]
[WhiteFideId "2209764"]
[BlackFideId "13801910"]
[WhiteElo "2455"]
[BlackElo "1857"]
[Result "0-1"]
[Round "05"]
[TimeControl "180+2"]
[Date "2023.03.21"]
[WhiteClock "0:00:05"]
[BlackClock "0:00:04"]

1. e4 {[%clk 0:03:00]}  c5 {[%clk 0:02:57]} 2. Nf3 {[%clk 0:03:01]}  d6 {[%clk 0:02:57]} 3. d4 {[%clk 0:03:01]}  cxd4 {[%clk 0:02:58]} 4. Nxd4 {[%clk 0:03:02]}  Nf6 {[%clk 0:02:58]} 5. Nc3 {[%clk 0:03:02]}  a6 {[%clk 0:02:58]} 6. Be3 {[%clk 0:03:03]}  e5 {[%clk 0:02:57]} 7. Nb3 {[%clk 0:03:03]}  Be6 {[%clk 0:02:53]} 8. f3 {[%clk 0:03:03]}  h5 {[%clk 0:02:42]} 9. Na4 {[%clk 0:03:03]}  Nbd7 {[%clk 0:02:38]} 10. c4 {[%clk 0:03:03]}  Rc8 {[%clk 0:02:23]} 11. Rc1 {[%clk 0:02:57]}  Be7 {[%clk 0:02:17]} 12. Be2 {[%clk 0:02:56]}  O-O {[%clk 0:02:16]} 13. O-O {[%clk 0:02:56]}  Qc7 {[%clk 0:02:04]} 14. Qd2 {[%clk 0:02:48]}  Nc5 {[%clk 0:02:01]} 15. Nc3 {[%clk 0:02:42]}  Nxb3 {[%clk 0:01:54]} 16. axb3 {[%clk 0:02:43]}  Nd7 {[%clk 0:01:53]} 17. Nd5 {[%clk 0:02:34]}  Bxd5 {[%clk 0:01:51]} 18. Qxd5 {[%clk 0:02:34]}  Nc5 {[%clk 0:01:21]} 19. b4 {[%clk 0:02:33]}  Ne6 {[%clk 0:01:20]} 20. b5 {[%clk 0:02:32]}  axb5 {[%clk 0:01:18]} 21. Qxb5 {[%clk 0:02:27]}  Ra8 {[%clk 0:01:11]} 22. Rfd1 {[%clk 0:02:18]}  Ra5 {[%clk 0:01:06]} 23. Qb3 {[%clk 0:02:11]}  Nc5 {[%clk 0:01:01]} 24. Qc2 {[%clk 0:02:04]}  Rfa8 {[%clk 0:00:55]} 25. Bf1 {[%clk 0:01:45]}  Ra2 {[%clk 0:00:48]} 26. Qf2 {[%clk 0:01:44]}  Qb6 {[%clk 0:00:32]} 27. Rc2 {[%clk 0:01:37]}  Qb3 {[%clk 0:00:23]} 28. Bxc5 {[%clk 0:01:17]}  dxc5 {[%clk 0:00:23]} 29. Rd3 {[%clk 0:01:17]}  Qb4 {[%clk 0:00:16]} 30. g3 {[%clk 0:01:09]}  Ra1 {[%clk 0:00:16]} 31. Kg2 {[%clk 0:01:07]}  R8a2 {[%clk 0:00:16]} 32. b3 {[%clk 0:01:00]}  Rxc2 {[%clk 0:00:13]} 33. Qxc2 {[%clk 0:01:01]}  Qe1 {[%clk 0:00:12]} 34. Qf2 {[%clk 0:00:57]}  Qb1 {[%clk 0:00:12]} 35. Be2 {[%clk 0:00:35]}  Qh1+ {[%clk 0:00:09]} 36. Kh3 {[%clk 0:00:34]}  Bf6 {[%clk 0:00:09]} 37. Rd2 {[%clk 0:00:19]}  Qc1 {[%clk 0:00:08]} 38. Bd3 {[%clk 0:00:17]}  Qc3 {[%clk 0:00:06]} 39. Qe2 {[%clk 0:00:15]}  Qxb3 {[%clk 0:00:06]} 40. Rb2 {[%clk 0:00:15]}  Qa4 {[%clk 0:00:05]} 41. f4 {[%clk 0:00:10]}  exf4 {[%clk 0:00:05]} 42. gxf4 {[%clk 0:00:07]}  Ra3 {[%clk 0:00:05]} 43. Rxb7 {[%clk 0:00:05]}  Qa8 {[%clk 0:00:04]} 0-1


[Site "https://www.chess.com"]

[Event "Titled Tuesday Blitz March 21 Early 2023"]
[White "Kraus, Tomas"]
[Black "Tymrakiewicz, Rafal"]
[WhiteFideId "331708"]
[BlackFideId "1108832"]
[WhiteElo "2389"]
[BlackElo "2151"]
[Result "1/2-1/2"]
[Round "05"]
[TimeControl "180+2"]
[Date "2023.03.21"]
[WhiteClock "0:00:21"]
[BlackClock "0:00:53"]

1. e4 {[%clk 0:02:55]}  Nf6 {[%clk 0:02:58]} 2. e5 {[%clk 0:02:54]}  Nd5 {[%clk 0:02:58]} 3. c4 {[%clk 0:02:52]}  Nb6 {[%clk 0:02:57]} 4. c5 {[%clk 0:02:52]}  Nd5 {[%clk 0:02:57]} 5. Nc3 {[%clk 0:02:53]}  c6 {[%clk 0:02:58]} 6. d4 {[%clk 0:02:50]}  b6 {[%clk 0:02:56]} 7. cxb6 {[%clk 0:02:47]}  Qxb6 {[%clk 0:02:55]} 8. Bc4 {[%clk 0:02:41]}  e6 {[%clk 0:02:52]} 9. Nf3 {[%clk 0:02:34]}  Ba6 {[%clk 0:02:52]} 10. Qe2 {[%clk 0:02:00]}  Bxc4 {[%clk 0:02:27]} 11. Qxc4 {[%clk 0:02:00]}  Qa6 {[%clk 0:02:28]} 12. Qxa6 {[%clk 0:01:54]}  Nxa6 {[%clk 0:02:27]} 13. O-O {[%clk 0:01:49]}  Nxc3 {[%clk 0:02:16]} 14. bxc3 {[%clk 0:01:50]}  Rb8 {[%clk 0:02:16]} 15. Be3 {[%clk 0:01:41]}  Ba3 {[%clk 0:02:15]} 16. Rab1 {[%clk 0:01:40]}  Bb2 {[%clk 0:01:55]} 17. c4 {[%clk 0:01:09]}  O-O {[%clk 0:01:54]} 18. Bc1 {[%clk 0:01:04]}  Bxc1 {[%clk 0:01:43]} 19. Rfxc1 {[%clk 0:01:03]}  c5 {[%clk 0:01:31]} 20. d5 {[%clk 0:01:00]}  Rfc8 {[%clk 0:01:22]} 21. a3 {[%clk 0:00:55]}  Nc7 {[%clk 0:01:04]} 22. d6 {[%clk 0:00:48]}  Na8 {[%clk 0:01:04]} 23. Ne1 {[%clk 0:00:37]}  Rxb1 {[%clk 0:00:59]} 24. Rxb1 {[%clk 0:00:37]}  Nb6 {[%clk 0:01:00]} 25. Rc1 {[%clk 0:00:22]}  Na4 {[%clk 0:00:59]} 26. Rb1 {[%clk 0:00:20]}  Nb6 {[%clk 0:00:58]} 27. Rc1 {[%clk 0:00:20]}  Rb8 {[%clk 0:00:55]} 28. Rb1 {[%clk 0:00:21]}  Rc8 {[%clk 0:00:53]} 1/2-1/2


[Site "https://www.chess.com"]

[Event "Titled Tuesday Blitz March 21 Early 2023"]
[White "Shukhman, Anna"]
[Black "Shvedova, Alexandra"]
[WhiteFideId "54180058"]
[BlackFideId "54154782"]
[WhiteElo "2125"]
[BlackElo "2057"]
[Result "1-0"]
[Round "05"]
[TimeControl "180+2"]
[Date "2023.03.21"]
[WhiteClock "0:00:31"]
[BlackClock "0:00:02"]

1. e4 {[%clk 0:03:00]}  e5 {[%clk 0:03:00]} 2. Nf3 {[%clk 0:03:00]}  Nc6 {[%clk 0:03:00]} 3. Bb5 {[%clk 0:02:58]}  Nf6 {[%clk 0:02:59]} 4. O-O {[%clk 0:02:55]}  Nxe4 {[%clk 0:02:59]} 5. Re1 {[%clk 0:02:49]}  Nd6 {[%clk 0:02:58]} 6. Nxe5 {[%clk 0:02:49]}  Nxe5 {[%clk 0:02:58]} 7. Rxe5+ {[%clk 0:02:49]}  Be7 {[%clk 0:02:58]} 8. Bf1 {[%clk 0:02:50]}  O-O {[%clk 0:02:58]} 9. d4 {[%clk 0:02:50]}  Bf6 {[%clk 0:02:56]} 10. Re1 {[%clk 0:02:49]}  Nf5 {[%clk 0:02:51]} 11. c3 {[%clk 0:02:48]}  d5 {[%clk 0:02:51]} 12. Bf4 {[%clk 0:02:47]}  c6 {[%clk 0:02:37]} 13. Nd2 {[%clk 0:02:45]}  Be6 {[%clk 0:02:31]} 14. Bd3 {[%clk 0:02:44]}  Re8 {[%clk 0:02:27]} 15. Qh5 {[%clk 0:02:42]}  g6 {[%clk 0:02:24]} 16. Qf3 {[%clk 0:02:41]}  Bg7 {[%clk 0:02:21]} 17. Be5 {[%clk 0:02:38]}  Qd7 {[%clk 0:02:07]} 18. a4 {[%clk 0:02:07]}  Nd6 {[%clk 0:01:38]} 19. a5 {[%clk 0:02:03]}  Bf5 {[%clk 0:01:26]} 20. Bxf5 {[%clk 0:01:30]}  Nxf5 {[%clk 0:01:25]} 21. Nb3 {[%clk 0:01:30]}  b6 {[%clk 0:01:16]} 22. Bxg7 {[%clk 0:01:25]}  Kxg7 {[%clk 0:01:11]} 23. h3 {[%clk 0:01:20]}  Nd6 {[%clk 0:01:04]} 24. axb6 {[%clk 0:01:14]}  axb6 {[%clk 0:01:04]} 25. Nd2 {[%clk 0:01:08]}  Qc7 {[%clk 0:00:39]} 26. Qg3 {[%clk 0:01:03]}  Rxa1 {[%clk 0:00:36]} 27. Rxa1 {[%clk 0:01:01]}  Re2 {[%clk 0:00:36]} 28. Nf1 {[%clk 0:01:00]}  Rxb2 {[%clk 0:00:34]} 29. Ne3 {[%clk 0:00:56]}  Qd7 {[%clk 0:00:31]} 30. Ng4 {[%clk 0:00:49]}  Re2 {[%clk 0:00:25]} 31. Qh4 {[%clk 0:00:45]}  Ne8 {[%clk 0:00:19]} 32. Ra8 {[%clk 0:00:43]}  h5 {[%clk 0:00:18]} 33. Ne3 {[%clk 0:00:39]}  Nf6 {[%clk 0:00:14]} 34. Qg3 {[%clk 0:00:39]}  Re1+ {[%clk 0:00:13]} 35. Kh2 {[%clk 0:00:38]}  Rc1 {[%clk 0:00:13]} 36. Qb8 {[%clk 0:00:38]}  Ne8 {[%clk 0:00:03]} 37. Qxe8 {[%clk 0:00:38]}  Qxe8 {[%clk 0:00:03]} 38. Rxe8 {[%clk 0:00:38]}  Rxc3 {[%clk 0:00:04]} 39. Rc8 {[%clk 0:00:38]}  b5 {[%clk 0:00:04]} 40. Nxd5 {[%clk 0:00:38]}  Rc4 {[%clk 0:00:05]} 41. Ne7 {[%clk 0:00:36]}  Rxd4 {[%clk 0:00:05]} 42. Rxc6 {[%clk 0:00:35]}  Kf8 {[%clk 0:00:04]} 43. Nc8 {[%clk 0:00:35]}  b4 {[%clk 0:00:05]} 44. Rb6 {[%clk 0:00:34]}  Ke8 {[%clk 0:00:02]} 45. Na7 {[%clk 0:00:34]}  Kd7 {[%clk 0:00:03]} 46. Rb7+ {[%clk 0:00:33]}  Ke6 {[%clk 0:00:02]} 47. Nc6 {[%clk 0:00:33]}  Rd2 {[%clk 0:00:03]} 48. f3 {[%clk 0:00:32]}  Rc2 {[%clk 0:00:02]} 49. Nd4+ {[%clk 0:00:31]} 1-0


[Site "https://www.chess.com"]

[Event "Titled Tuesday Blitz March 21 Early 2023"]
[White "Devaev, Alexander"]
[Black "Rodriguez Santiago, Jaime"]
[WhiteFideId "4169395"]
[BlackFideId "3100898"]
[WhiteElo "2225"]
[BlackElo "2025"]
[Result "1-0"]
[Round "05"]
[TimeControl "180+2"]
[Date "2023.03.21"]
[WhiteClock "0:00:22"]
[BlackClock "0:00:28"]

1. d4 {[%clk 0:02:58]}  Nf6 {[%clk 0:02:58]} 2. c4 {[%clk 0:02:58]}  e6 {[%clk 0:02:58]} 3. Nc3 {[%clk 0:02:59]}  d5 {[%clk 0:02:58]} 4. Bg5 {[%clk 0:02:58]}  c6 {[%clk 0:02:55]} 5. e3 {[%clk 0:02:58]}  Nbd7 {[%clk 0:02:54]} 6. Nf3 {[%clk 0:02:59]}  Qa5 {[%clk 0:02:54]} 7. Nd2 {[%clk 0:02:36]}  dxc4 {[%clk 0:02:48]} 8. Bxf6 {[%clk 0:02:35]}  Nxf6 {[%clk 0:02:47]} 9. Nxc4 {[%clk 0:02:36]}  Qc7 {[%clk 0:02:46]} 10. Bd3 {[%clk 0:02:32]}  Be7 {[%clk 0:02:45]} 11. Qc2 {[%clk 0:02:32]}  O-O {[%clk 0:02:44]} 12. O-O {[%clk 0:02:32]}  h6 {[%clk 0:02:36]} 13. Rac1 {[%clk 0:02:22]}  Rd8 {[%clk 0:02:28]} 14. Ne4 {[%clk 0:02:11]}  Nxe4 {[%clk 0:02:15]} 15. Bxe4 {[%clk 0:02:11]}  Bf6 {[%clk 0:02:10]} 16. Qe2 {[%clk 0:02:06]}  Qe7 {[%clk 0:02:06]} 17. Bb1 {[%clk 0:01:59]}  g6 {[%clk 0:02:02]} 18. f4 {[%clk 0:01:54]}  Bg7 {[%clk 0:02:00]} 19. Ne5 {[%clk 0:01:54]}  Bd7 {[%clk 0:01:42]} 20. a3 {[%clk 0:01:52]}  Be8 {[%clk 0:01:41]} 21. Ba2 {[%clk 0:01:50]}  Rac8 {[%clk 0:01:40]} 22. Rc2 {[%clk 0:01:28]}  c5 {[%clk 0:01:22]} 23. Rfc1 {[%clk 0:01:29]}  b6 {[%clk 0:01:22]} 24. b4 {[%clk 0:01:19]}  c4 {[%clk 0:01:13]} 25. Bxc4 {[%clk 0:01:06]}  Bxe5 {[%clk 0:01:07]} 26. fxe5 {[%clk 0:01:01]}  Ba4 {[%clk 0:01:05]} 27. Rc3 {[%clk 0:00:49]}  Qg5 {[%clk 0:01:04]} 28. Ba6 {[%clk 0:00:45]}  Rb8 {[%clk 0:00:49]} 29. Rc7 {[%clk 0:00:40]}  Be8 {[%clk 0:00:47]} 30. Qf2 {[%clk 0:00:38]}  b5 {[%clk 0:00:42]} 31. Bb7 {[%clk 0:00:28]}  Rd7 {[%clk 0:00:37]} 32. Be4 {[%clk 0:00:24]}  Rxc7 {[%clk 0:00:36]} 33. Rxc7 {[%clk 0:00:24]}  Rd8 {[%clk 0:00:35]} 34. Qf3 {[%clk 0:00:23]}  h5 {[%clk 0:00:32]} 35. g3 {[%clk 0:00:21]}  h4 {[%clk 0:00:32]} 36. Qf4 {[%clk 0:00:22]}  Qxf4 {[%clk 0:00:31]} 37. gxf4 {[%clk 0:00:23]}  a5 {[%clk 0:00:28]} 38. bxa5 {[%clk 0:00:20]}  Rb8 {[%clk 0:00:27]} 39. a6 {[%clk 0:00:20]}  b4 {[%clk 0:00:28]} 40. axb4 {[%clk 0:00:21]}  Rxb4 {[%clk 0:00:27]} 41. a7 {[%clk 0:00:21]}  Ra4 {[%clk 0:00:27]} 42. a8=Q {[%clk 0:00:21]}  Rxa8 {[%clk 0:00:28]} 43. Bxa8 {[%clk 0:00:22]} 1-0


[Site "https://www.chess.com"]

[Event "Titled Tuesday Blitz March 21 Early 2023"]
[White "Tomaszewski, Kacper"]
[Black "Putri, Regita Desyari"]
[WhiteFideId "1127373"]
[BlackFideId "7109083"]
[WhiteElo "2211"]
[BlackElo "1930"]
[Result "1-0"]
[Round "05"]
[TimeControl "180+2"]
[Date "2023.03.21"]
[WhiteClock "0:01:14"]
[BlackClock "0:00:13"]

1. e4 {[%clk 0:03:00]}  e5 {[%clk 0:02:55]} 2. Nf3 {[%clk 0:03:00]}  Nc6 {[%clk 0:02:52]} 3. Nc3 {[%clk 0:02:58]}  Nf6 {[%clk 0:02:51]} 4. h3 {[%clk 0:02:58]}  Bc5 {[%clk 0:02:49]} 5. Nxe5 {[%clk 0:02:57]}  Nxe5 {[%clk 0:02:49]} 6. d4 {[%clk 0:02:57]}  Bb4 {[%clk 0:02:23]} 7. dxe5 {[%clk 0:02:54]}  Nxe4 {[%clk 0:02:23]} 8. Qd4 {[%clk 0:02:50]}  Bxc3+ {[%clk 0:02:23]} 9. bxc3 {[%clk 0:02:50]}  Ng5 {[%clk 0:02:24]} 10. f4 {[%clk 0:02:36]}  Ne6 {[%clk 0:02:16]} 11. Qf2 {[%clk 0:02:36]}  Qe7 {[%clk 0:02:12]} 12. Be3 {[%clk 0:02:34]}  d6 {[%clk 0:01:53]} 13. exd6 {[%clk 0:02:15]}  cxd6 {[%clk 0:01:45]} 14. Be2 {[%clk 0:02:08]}  O-O {[%clk 0:01:37]} 15. O-O {[%clk 0:02:07]}  f5 {[%clk 0:01:34]} 16. Rae1 {[%clk 0:02:05]}  Qc7 {[%clk 0:01:33]} 17. c4 {[%clk 0:02:01]}  Bd7 {[%clk 0:01:31]} 18. g4 {[%clk 0:01:48]}  Nc5 {[%clk 0:01:29]} 19. Bf3 {[%clk 0:01:42]}  Rae8 {[%clk 0:01:23]} 20. Bd5+ {[%clk 0:01:38]}  Kh8 {[%clk 0:01:23]} 21. g5 {[%clk 0:01:32]}  b6 {[%clk 0:01:14]} 22. Qh4 {[%clk 0:01:30]}  Qd8 {[%clk 0:00:51]} 23. Bd4 {[%clk 0:01:29]}  Ne4 {[%clk 0:00:13]} 24. Qh6 {[%clk 0:01:14]} 1-0


[Site "https://www.chess.com"]